Workbook

Sheet Informe de ventas del producto
B1: Informe de ventas del producto
B20: Productos

Sheet Datos históricos
B1: Historial de lista de precios y de ventas
B3: Identificador de producto | C3: Nombre de producto | D3: Fecha de precio | E3: Precio de venta minorista por unidad | F3: Precio de venta al mayor por unidad* | G3: Unidades vendidas (minorista) | H3: Unidades vendidas (mayorista) | I3: Total de ventas (Número) | J3: Total de ventas (EUR)
B4: 5 | C4: =IFERROR(IF(tblVentas[[#This Row],[Identificador de producto]]<>"",VLOOKUP(tblVentas[Identificador de producto],tblProductos[[Identificador de producto]:[Nombre]],2,FALSE),""),"Unknown Product ID") -> Pantalón corto | D4: 2012-01-01 | E4: 20 | F4: 20.00 € | G4: 629 | H4: 1,254 | I4: =tblVentas[[#This Row],[Unidades vendidas (minorista)]]+tblVentas[[#This Row],[Unidades vendidas (mayorista)]] -> 1,883 | J4: =tblVentas[[#This Row],[Unidades vendidas (minorista)]]*tblVentas[[#This Row],[Precio de venta minorista por unidad]]+tblVentas[[#This Row],[Unidades vendidas (mayorista)]]*tblVentas[[#This Row],[Precio de venta al mayor por unidad*]] -> 37,660 €
B5: 1 | C5: =IFERROR(IF(tblVentas[[#This Row],[Identificador de producto]]<>"",VLOOKUP(tblVentas[Identificador de producto],tblProductos[[Identificador de producto]:[Nombre]],2,FALSE),""),"Unknown Product ID") -> Camisetas | D5: 2012-01-01 | E5: 88 | F5: 54.00 € | G5: 734 | H5: 1,427 | I5: =tblVentas[[#This Row],[Unidades vendidas (minorista)]]+tblVentas[[#This Row],[Unidades vendidas (mayorista)]] -> 2,161 | J5: =tblVentas[[#This Row],[Unidades vendidas (minorista)]]*tblVentas[[#This Row],[Precio de venta minorista por unidad]]+tblVentas[[#This Row],[Unidades vendidas (mayorista)]]*tblVentas[[#This Row],[Precio de venta al mayor por unidad*]] -> 141,650 €
B6: 2 | C6: =IFERROR(IF(tblVentas[[#This Row],[Identificador de producto]]<>"",VLOOKUP(tblVentas[Identificador de producto],tblProductos[[Identificador de producto]:[Nombre]],2,FALSE),""),"Unknown Product ID") -> Sandalias | D6: 2012-01-01 | E6: 70 | F6: 44.00 € | G6: 744 | H6: 1,043 | I6: =tblVentas[[#This Row],[Unidades vendidas (minorista)]]+tblVentas[[#This Row],[Unidades vendidas (mayorista)]] -> 1,787 | J6: =tblVentas[[#This Row],[Unidades vendidas (minorista)]]*tblVentas[[#This Row],[Precio de venta minorista por unidad]]+tblVentas[[#This Row],[Unidades vendidas (mayorista)]]*tblVentas[[#This Row],[Precio de venta al mayor por unidad*]] -> 97,972 €
B7: 3 | C7: =IFERROR(IF(tblVentas[[#This Row],[Identificador de producto]]<>"",VLOOKUP(tblVentas[Identificador de producto],tblProductos[[Identificador de producto]:[Nombre]],2,FALSE),""),"Unknown Product ID") -> Paraguas | D7: 2012-01-01 | E7: 63 | F7: 44.00 € | G7: 681 | H7: 1,523 | I7: =tblVentas[[#This Row],[Unidades vendidas (minorista)]]+tblVentas[[#This Row],[Unidades vendidas (mayorista)]] -> 2,204 | J7: =tblVentas[[#This Row],[Unidades vendidas (minorista)]]*tblVentas[[#This Row],[Precio de venta minorista por unidad]]+tblVentas[[#This Row],[Unidades vendidas (mayorista)]]*tblVentas[[#This Row],[Precio de venta al mayor por unidad*]] -> 109,915 €
B8: 4 | C8: =IFERROR(IF(tblVentas[[#This Row],[Identificador de producto]]<>"",VLOOKUP(tblVentas[Identificador de producto],tblProductos[[Identificador de producto]:[Nombre]],2,FALSE),""),"Unknown Product ID") -> Botellas de agua | D8: 2012-01-01 | E8: 35 | F8: 27.00 € | G8: 602 | H8: 1,822 | I8: =tblVentas[[#This Row],[Unidades vendidas (minorista)]]+tblVentas[[#This Row],[Unidades vendidas (mayorista)]] -> 2,424 | J8: =tblVentas[[#This Row],[Unidades vendidas (minorista)]]*tblVentas[[#This Row],[Precio de venta minorista por unidad]]+tblVentas[[#This Row],[Unidades vendidas (mayorista)]]*tblVentas[[#This Row],[Precio de venta al mayor por unidad*]] -> 70,264 €
B9: 1 | C9: =IFERROR(IF(tblVentas[[#This Row],[Identificador de producto]]<>"",VLOOKUP(tblVentas[Identificador de producto],tblProductos[[Identificador de producto]:[Nombre]],2,FALSE),""),"Unknown Product ID") -> Camisetas | D9: 2012-02-01 | E9: 55 | F9: 44.00 € | G9: 678 | H9: 1,515 | I9: =tblVentas[[#This Row],[Unidades vendidas (minorista)]]+tblVentas[[#This Row],[Unidades vendidas (mayorista)]] -> 2,193 | J9: =tblVentas[[#This Row],[Unidades vendidas (minorista)]]*tblVentas[[#This Row],[Precio de venta minorista por unidad]]+tblVentas[[#This Row],[Unidades vendidas (mayorista)]]*tblVentas[[#This Row],[Precio de venta al mayor por unidad*]] -> 103,950 €
B10: 2 | C10: =IFERROR(IF(tblVentas[[#This Row],[Identificador de producto]]<>"",VLOOKUP(tblVentas[Identificador de producto],tblProductos[[Identificador de producto]:[Nombre]],2,FALSE),""),"Unknown Product ID") -> Sandalias | D10: 2012-02-01 | E10: 83 | F10: 54.00 € | G10: 753 | H10: 1,005 | I10: =tblVentas[[#This Row],[Unidades vendidas (minorista)]]+tblVentas[[#This Row],[Unidades vendidas (mayorista)]] -> 1,758 | J10: =tblVentas[[#This Row],[Unidades vendidas (minorista)]]*tblVentas[[#This Row],[Precio de venta minorista por unidad]]+tblVentas[[#This Row],[Unidades vendidas (mayorista)]]*tblVentas[[#This Row],[Precio de venta al mayor por unidad*]] -> 116,769 €
B11: 3 | C11: =IFERROR(IF(tblVentas[[#This Row],[Identificador de producto]]<>"",VLOOKUP(tblVentas[Identificador de producto],tblProductos[[Identificador de producto]:[Nombre]],2,FALSE),""),"Unknown Product ID") -> Paraguas | D11: 2012-02-01 | E11: 34 | F11: 34.00 € | G11: 986 | H11: 1,069 | I11: =tblVentas[[#This Row],[Unidades vendidas (minorista)]]+tblVentas[[#This Row],[Unidades vendidas (mayorista)]] -> 2,055 | J11: =tblVentas[[#This Row],[Unidades vendidas (minorista)]]*tblVentas[[#This Row],[Precio de venta minorista por unidad]]+tblVentas[[#This Row],[Unidades vendidas (mayorista)]]*tblVentas[[#This Row],[Precio de venta al mayor por unidad*]] -> 69,870 €
B12: 4 | C12: =IFERROR(IF(tblVentas[[#This Row],[Identificador de producto]]<>"",VLOOKUP(tblVentas[Identificador de producto],tblProductos[[Identificador de producto]:[Nombre]],2,FALSE),""),"Unknown Product ID") -> Botellas de agua | D12: 2012-02-01 | E12: 35 | F12: 25.00 € | G12: 848 | H12: 1,211 | I12: =tblVentas[[#This Row],[Unidades vendidas (minorista)]]+tblVentas[[#This Row],[Unidades vendidas (mayorista)]] -> 2,059 | J12: =tblVentas[[#This Row],[Unidades vendidas (minorista)]]*tblVentas[[#This Row],[Precio de venta minorista por unidad]]+tblVentas[[#This Row],[Unidades vendidas (mayorista)]]*tblVentas[[#This Row],[Precio de venta al mayor por unidad*]] -> 59,955 €
B13: 5 | C13: =IFERROR(IF(tblVentas[[#This Row],[Identificador de producto]]<>"",VLOOKUP(tblVentas[Identificador de producto],tblProductos[[Identificador de producto]:[Nombre]],2,FALSE),""),"Unknown Product ID") -> Pantalón corto | D13: 2012-02-01 | E13: 41 | F13: 38.00 € | G13: 980 | H13: 1,330 | I13: =tblVentas[[#This Row],[Unidades vendidas (minorista)]]+tblVentas[[#This Row],[Unidades vendidas (mayorista)]] -> 2,310 | J13: =tblVentas[[#This Row],[Unidades vendidas (minorista)]]*tblVentas[[#This Row],[Precio de venta minorista por unidad]]+tblVentas[[#This Row],[Unidades vendidas (mayorista)]]*tblVentas[[#This Row],[Precio de venta al mayor por unidad*]] -> 90,720 €
B14: 1 | C14: =IFERROR(IF(tblVentas[[#This Row],[Identificador de producto]]<>"",VLOOKUP(tblVentas[Identificador de producto],tblProductos[[Identificador de producto]:[Nombre]],2,FALSE),""),"Unknown Product ID") -> Camisetas | D14: 2012-02-29 | E14: 27 | F14: 18.00 € | G14: 533 | H14: 1,936 | I14: =tblVentas[[#This Row],[Unidades vendidas (minorista)]]+tblVentas[[#This Row],[Unidades vendidas (mayorista)]] -> 2,469 | J14: =tblVentas[[#This Row],[Unidades vendidas (minorista)]]*tblVentas[[#This Row],[Precio de venta minorista por unidad]]+tblVentas[[#This Row],[Unidades vendidas (mayorista)]]*tblVentas[[#This Row],[Precio de venta al mayor por unidad*]] -> 49,239 €
B15: 2 | C15: =IFERROR(IF(tblVentas[[#This Row],[Identificador de producto]]<>"",VLOOKUP(tblVentas[Identificador de producto],tblProductos[[Identificador de producto]:[Nombre]],2,FALSE),""),"Unknown Product ID") -> Sandalias | D15: 2012-02-29 | E15: 38 | F15: 28.00 € | G15: 952 | H15: 1,512 | I15: =tblVentas[[#This Row],[Unidades vendidas (minorista)]]+tblVentas[[#This Row],[Unidades vendidas (mayorista)]] -> 2,464 | J15: =tblVentas[[#This Row],[Unidades vendidas (minorista)]]*tblVentas[[#This Row],[Precio de venta minorista por unidad]]+tblVentas[[#This Row],[Unidades vendidas (mayorista)]]*tblVentas[[#This Row],[Precio de venta al mayor por unidad*]] -> 78,512 €
B16: 3 | C16: =IFERROR(IF(tblVentas[[#This Row],[Identificador de producto]]<>"",VLOOKUP(tblVentas[Identificador de producto],tblProductos[[Identificador de producto]:[Nombre]],2,FALSE),""),"Unknown Product ID") -> Paraguas | D16: 2012-02-29 | E16: 92 | F16: 92.00 € | G16: 956 | H16: 1,266 | I16: =tblVentas[[#This Row],[Unidades vendidas (minorista)]]+tblVentas[[#This Row],[Unidades vendidas (mayorista)]] -> 2,222 | J16: =tblVentas[[#This Row],[Unidades vendidas (minorista)]]*tblVentas[[#This Row],[Precio de venta minorista por unidad]]+tblVentas[[#This Row],[Unidades vendidas (mayorista)]]*tblVentas[[#This Row],[Precio de venta al mayor por unidad*]] -> 204,424 €
B17: 4 | C17: =IFERROR(IF(tblVentas[[#This Row],[Identificador de producto]]<>"",VLOOKUP(tblVentas[Identificador de producto],tblProductos[[Identificador de producto]:[Nombre]],2,FALSE),""),"Unknown Product ID") -> Botellas de agua | D17: 2012-02-29 | E17: 43 | F17: 36.00 € | G17: 952 | H17: 1,390 | I17: =tblVentas[[#This Row],[Unidades vendidas (minorista)]]+tblVentas[[#This Row],[Unidades vendidas (mayorista)]] -> 2,342 | J17: =tblVentas[[#This Row],[Unidades vendidas (minorista)]]*tblVentas[[#This Row],[Precio de venta minorista por unidad]]+tblVentas[[#This Row],[Unidades vendidas (mayorista)]]*tblVentas[[#This Row],[Precio de venta al mayor por unidad*]] -> 90,976 €
B18: 5 | C18: =IFERROR(IF(tblVentas[[#This Row],[Identificador de producto]]<>"",VLOOKUP(tblVentas[Identificador de producto],tblProductos[[Identificador de producto]:[Nombre]],2,FALSE),""),"Unknown Product ID") -> Pantalón corto | D18: 2012-02-29 | E18: 98 | F18: 73.00 € | G18: 530 | H18: 1,452 | I18: =tblVentas[[#This Row],[Unidades vendidas (minorista)]]+tblVentas[[#This Row],[Unidades vendidas (mayorista)]] -> 1,982 | J18: =tblVentas[[#This Row],[Unidades vendidas (minorista)]]*tblVentas[[#This Row],[Precio de venta minorista por unidad]]+tblVentas[[#This Row],[Unidades vendidas (mayorista)]]*tblVentas[[#This Row],[Precio de venta al mayor por unidad*]] -> 157,936 €
B19: 1 | C19: =IFERROR(IF(tblVentas[[#This Row],[Identificador de producto]]<>"",VLOOKUP(tblVentas[Identificador de producto],tblProductos[[Identificador de producto]:[Nombre]],2,FALSE),""),"Unknown Product ID") -> Camisetas | D19: 2012-03-31 | E19: 38 | F19: 28.00 € | G19: 973 | H19: 1,415 | I19: =tblVentas[[#This Row],[Unidades vendidas (minorista)]]+tblVentas[[#This Row],[Unidades vendidas (mayorista)]] -> 2,388 | J19: =tblVentas[[#This Row],[Unidades vendidas (minorista)]]*tblVentas[[#This Row],[Precio de venta minorista por unidad]]+tblVentas[[#This Row],[Unidades vendidas (mayorista)]]*tblVentas[[#This Row],[Precio de venta al mayor por unidad*]] -> 76,594 €
B20: 2 | C20: =IFERROR(IF(tblVentas[[#This Row],[Identificador de producto]]<>"",VLOOKUP(tblVentas[Identificador de producto],tblProductos[[Identificador de producto]:[Nombre]],2,FALSE),""),"Unknown Product ID") -> Sandalias | D20: 2012-03-31 | E20: 50 | F20: 36.00 € | G20: 672 | H20: 1,105 | I20: =tblVentas[[#This Row],[Unidades vendidas (minorista)]]+tblVentas[[#This Row],[Unidades vendidas (mayorista)]] -> 1,777 | J20: =tblVentas[[#This Row],[Unidades vendidas (minorista)]]*tblVentas[[#This Row],[Precio de venta minorista por unidad]]+tblVentas[[#This Row],[Unidades vendidas (mayorista)]]*tblVentas[[#This Row],[Precio de venta al mayor por unidad*]] -> 73,380 €
B21: 3 | C21: =IFERROR(IF(tblVentas[[#This Row],[Identificador de producto]]<>"",VLOOKUP(tblVentas[Identificador de producto],tblProductos[[Identificador de producto]:[Nombre]],2,FALSE),""),"Unknown Product ID") -> Paraguas | D21: 2012-03-31 | E21: 24 | F21: 23.00 € | G21: 769 | H21: 1,629 | I21: =tblVentas[[#This Row],[Unidades vendidas (minorista)]]+tblVentas[[#This Row],[Unidades vendidas (mayorista)]] -> 2,398 | J21: =tblVentas[[#This Row],[Unidades vendidas (minorista)]]*tblVentas[[#This Row],[Precio de venta minorista por unidad]]+tblVentas[[#This Row],[Unidades vendidas (mayorista)]]*tblVentas[[#This Row],[Precio de venta al mayor por unidad*]] -> 55,923 €
B22: 4 | C22: =IFERROR(IF(tblVentas[[#This Row],[Identificador de producto]]<>"",VLOOKUP(tblVentas[Identificador de producto],tblProductos[[Identificador de producto]:[Nombre]],2,FALSE),""),"Unknown Product ID") -> Botellas de agua | D22: 2012-03-31 | E22: 72 | F22: 57.00 € | G22: 985 | H22: 1,848 | I22: =tblVentas[[#This Row],[Unidades vendidas (minorista)]]+tblVentas[[#This Row],[Unidades vendidas (mayorista)]] -> 2,833 | J22: =tblVentas[[#This Row],[Unidades vendidas (minorista)]]*tblVentas[[#This Row],[Precio de venta minorista por unidad]]+tblVentas[[#This Row],[Unidades vendidas (mayorista)]]*tblVentas[[#This Row],[Precio de venta al mayor por unidad*]] -> 176,256 €
B23: 5 | C23: =IFERROR(IF(tblVentas[[#This Row],[Identificador de producto]]<>"",VLOOKUP(tblVentas[Identificador de producto],tblProductos[[Identificador de producto]:[Nombre]],2,FALSE),""),"Unknown Product ID") -> Pantalón corto | D23: 2012-03-31 | E23: 85 | F23: 43.00 € | G23: 721 | H23: 1,426 | I23: =tblVentas[[#This Row],[Unidades vendidas (minorista)]]+tblVentas[[#This Row],[Unidades vendidas (mayorista)]] -> 2,147 | J23: =tblVentas[[#This Row],[Unidades vendidas (minorista)]]*tblVentas[[#This Row],[Precio de venta minorista por unidad]]+tblVentas[[#This Row],[Unidades vendidas (mayorista)]]*tblVentas[[#This Row],[Precio de venta al mayor por unidad*]] -> 122,603 €
B24: 1 | C24: =IFERROR(IF(tblVentas[[#This Row],[Identificador de producto]]<>"",VLOOKUP(tblVentas[Identificador de producto],tblProductos[[Identificador de producto]:[Nombre]],2,FALSE),""),"Unknown Product ID") -> Camisetas | D24: 2012-04-30 | E24: 91 | F24: 65.00 € | G24: 603 | H24: 1,226 | I24: =tblVentas[[#This Row],[Unidades vendidas (minorista)]]+tblVentas[[#This Row],[Unidades vendidas (mayorista)]] -> 1,829 | J24: =tblVentas[[#This Row],[Unidades vendidas (minorista)]]*tblVentas[[#This Row],[Precio de venta minorista por unidad]]+tblVentas[[#This Row],[Unidades vendidas (mayorista)]]*tblVentas[[#This Row],[Precio de venta al mayor por unidad*]] -> 134,563 €
B25: 2 | C25: =IFERROR(IF(tblVentas[[#This Row],[Identificador de producto]]<>"",VLOOKUP(tblVentas[Identificador de producto],tblProductos[[Identificador de producto]:[Nombre]],2,FALSE),""),"Unknown Product ID") -> Sandalias | D25: 2012-04-30 | E25: 91 | F25: 55.00 € | G25: 892 | H25: 1,823 | I25: =tblVentas[[#This Row],[Unidades vendidas (minorista)]]+tblVentas[[#This Row],[Unidades vendidas (mayorista)]] -> 2,715 | J25: =tblVentas[[#This Row],[Unidades vendidas (minorista)]]*tblVentas[[#This Row],[Precio de venta minorista por unidad]]+tblVentas[[#This Row],[Unidades vendidas (mayorista)]]*tblVentas[[#This Row],[Precio de venta al mayor por unidad*]] -> 181,437 €
B26: 3 | C26: =IFERROR(IF(tblVentas[[#This Row],[Identificador de producto]]<>"",VLOOKUP(tblVentas[Identificador de producto],tblProductos[[Identificador de producto]:[Nombre]],2,FALSE),""),"Unknown Product ID") -> Paraguas | D26: 2012-04-30 | E26: 42 | F26: 42.00 € | G26: 611 | H26: 1,181 | I26: =tblVentas[[#This Row],[Unidades vendidas (minorista)]]+tblVentas[[#This Row],[Unidades vendidas (mayorista)]] -> 1,792 | J26: =tblVentas[[#This Row],[Unidades vendidas (minorista)]]*tblVentas[[#This Row],[Precio de venta minorista por unidad]]+tblVentas[[#This Row],[Unidades vendidas (mayorista)]]*tblVentas[[#This Row],[Precio de venta al mayor por unidad*]] -> 75,264 €
B27: 4 | C27: =IFERROR(IF(tblVentas[[#This Row],[Identificador de producto]]<>"",VLOOKUP(tblVentas[Identificador de producto],tblProductos[[Identificador de producto]:[Nombre]],2,FALSE),""),"Unknown Product ID") -> Botellas de agua | D27: 2012-04-30 | E27: 85 | F27: 43.00 € | G27: 530 | H27: 1,039 | I27: =tblVentas[[#This Row],[Unidades vendidas (minorista)]]+tblVentas[[#This Row],[Unidades vendidas (mayorista)]] -> 1,569 | J27: =tblVentas[[#This Row],[Unidades vendidas (minorista)]]*tblVentas[[#This Row],[Precio de venta minorista por unidad]]+tblVentas[[#This Row],[Unidades vendidas (mayorista)]]*tblVentas[[#This Row],[Precio de venta al mayor por unidad*]] -> 89,727 €
B28: 5 | C28: =IFERROR(IF(tblVentas[[#This Row],[Identificador de producto]]<>"",VLOOKUP(tblVentas[Identificador de producto],tblProductos[[Identificador de producto]:[Nombre]],2,FALSE),""),"Unknown Product ID") -> Pantalón corto | D28: 2012-04-30 | E28: 82 | F28: 71.00 € | G28: 716 | H28: 1,249 | I28: =tblVentas[[#This Row],[Unidades vendidas (minorista)]]+tblVentas[[#This Row],[Unidades vendidas (mayorista)]] -> 1,965 | J28: =tblVentas[[#This Row],[Unidades vendidas (minorista)]]*tblVentas[[#This Row],[Precio de venta minorista por unidad]]+tblVentas[[#This Row],[Unidades vendidas (mayorista)]]*tblVentas[[#This Row],[Precio de venta al mayor por unidad*]] -> 147,391 €
B29: 1 | C29: =IFERROR(IF(tblVentas[[#This Row],[Identificador de producto]]<>"",VLOOKUP(tblVentas[Identificador de producto],tblProductos[[Identificador de producto]:[Nombre]],2,FALSE),""),"Unknown Product ID") -> Camisetas | D29: 2012-05-14 | E29: 34 | F29: 31.00 € | G29: 850 | H29: 1,548 | I29: =tblVentas[[#This Row],[Unidades vendidas (minorista)]]+tblVentas[[#This Row],[Unidades vendidas (mayorista)]] -> 2,398 | J29: =tblVentas[[#This Row],[Unidades vendidas (minorista)]]*tblVentas[[#This Row],[Precio de venta minorista por unidad]]+tblVentas[[#This Row],[Unidades vendidas (mayorista)]]*tblVentas[[#This Row],[Precio de venta al mayor por unidad*]] -> 76,888 €
B30: 2 | C30: =IFERROR(IF(tblVentas[[#This Row],[Identificador de producto]]<>"",VLOOKUP(tblVentas[Identificador de producto],tblProductos[[Identificador de producto]:[Nombre]],2,FALSE),""),"Unknown Product ID") -> Sandalias | D30: 2012-05-14 | E30: 64 | F30: 40.00 € | G30: 876 | H30: 1,663 | I30: =tblVentas[[#This Row],[Unidades vendidas (minorista)]]+tblVentas[[#This Row],[Unidades vendidas (mayorista)]] -> 2,539 | J30: =tblVentas[[#This Row],[Unidades vendidas (minorista)]]*tblVentas[[#This Row],[Precio de venta minorista por unidad]]+tblVentas[[#This Row],[Unidades vendidas (mayorista)]]*tblVentas[[#This Row],[Precio de venta al mayor por unidad*]] -> 122,584 €
B31: 3 | C31: =IFERROR(IF(tblVentas[[#This Row],[Identificador de producto]]<>"",VLOOKUP(tblVentas[Identificador de producto],tblProductos[[Identificador de producto]:[Nombre]],2,FALSE),""),"Unknown Product ID") -> Paraguas | D31: 2012-05-14 | E31: 33 | F31: 30.00 € | G31: 881 | H31: 1,149 | I31: =tblVentas[[#This Row],[Unidades vendidas (minorista)]]+tblVentas[[#This Row],[Unidades vendidas (mayorista)]] -> 2,030 | J31: =tblVentas[[#This Row],[Unidades vendidas (minorista)]]*tblVentas[[#This Row],[Precio de venta minorista por unidad]]+tblVentas[[#This Row],[Unidades vendidas (mayorista)]]*tblVentas[[#This Row],[Precio de venta al mayor por unidad*]] -> 63,543 €
B32: 4 | C32: =IFERROR(IF(tblVentas[[#This Row],[Identificador de producto]]<>"",VLOOKUP(tblVentas[Identificador de producto],tblProductos[[Identificador de producto]:[Nombre]],2,FALSE),""),"Unknown Product ID") -> Botellas de agua | D32: 2012-05-14 | E32: 29 | F32: 27.00 € | G32: 802 | H32: 1,548 | I32: =tblVentas[[#This Row],[Unidades vendidas (minorista)]]+tblVentas[[#This Row],[Unidades vendidas (mayorista)]] -> 2,350 | J32: =tblVentas[[#This Row],[Unidades vendidas (minorista)]]*tblVentas[[#This Row],[Precio de venta minorista por unidad]]+tblVentas[[#This Row],[Unidades vendidas (mayorista)]]*tblVentas[[#This Row],[Precio de venta al mayor por unidad*]] -> 65,054 €
B33: 5 | C33: =IFERROR(IF(tblVentas[[#This Row],[Identificador de producto]]<>"",VLOOKUP(tblVentas[Identificador de producto],tblProductos[[Identificador de producto]:[Nombre]],2,FALSE),""),"Unknown Product ID") -> Pantalón corto | D33: 2013-12-11 | E33: 24 | F33: 15.00 € | G33: 824 | H33: 1,994 | I33: =tblVentas[[#This Row],[Unidades vendidas (minorista)]]+tblVentas[[#This Row],[Unidades vendidas (mayorista)]] -> 2,818 | J33: =tblVentas[[#This Row],[Unidades vendidas (minorista)]]*tblVentas[[#This Row],[Precio de venta minorista por unidad]]+tblVentas[[#This Row],[Unidades vendidas (mayorista)]]*tblVentas[[#This Row],[Precio de venta al mayor por unidad*]] -> 49,686 €

Sheet Lista de precios
B1: Lista de precios de productos
B3: Adventure Works
B4: Calle de Arriba 345
B5: Vitoria, AL 77503
B6: Teléfono: +34 754 55 01 52
B7: FAX: +34 754 55 01 53
B8: www.adventure-works.com | F8: Última actualización 15/8/2013
B10: Identificador de producto | C10: Nombre | D10: Descripción | E10: Precio de venta minorista por unidad | F10: Precio de venta al mayor por unidad*
B11: 1 | C11: Camisetas | D11: Pase un verano de frescor con nuestras camisetas de 100% algodón prelavadas. | E11: 22.00 € | F11: 15.00 €
B12: 2 | C12: Sandalias | D12: Póngase nuestras sandalias de sola de goma y ande por la arena tranquilamente sin quemarse. | E12: 10.00 € | F12: 6.00 €
B13: 3 | C13: Paraguas | D13: Busque cobijo bajo nuestro gran parasol de playa que protege del 96% de todos los rayos UVA dañinos. | E13: 30.00 € | F13: 20.00 €
B14: 4 | C14: Botellas de agua | D14: Hidrátese con agua en la temperatura exacta con nuestra botella de agua térmica. | E14: 7.00 € | F14: 5.00 €
B15: 5 | C15: Pantalón corto | D15: Vaya directamente del agua al coche con nuestro pantalón corto de secado ultrarrápido. | E15: 15.00 € | F15: 8.00 €
F17: Llámenos si hay algún producto que no aparece en la lista.
F18: *Los precios de venta al mayor se aplican a cantidades superiores a 12 unidades.

Sheet Nivel de precios tabla dinámica (hidden)
B1: Nivel de precios tabla dinámica
B2: Esta hoja debe mantenerse oculta. Todas las modificaciones que se realicen a la tabla dinámica anterior pueden causar que los datos del Informe de ventas del producto sean incorrectos.
B3: Producto seleccionado: | C3: =IF(LEN(B5),B5,"Ninguna") -> Sandalias
B4: Nombre de producto | C4: Precio de venta minorista por unidad | D4: Suma de Total de ventas (Número)
B5: Sandalias | C5: 38 € | D5: 2464
C6: 50 € | D6: 1777
C7: 64 € | D7: 2539
C8: 70 € | D8: 1787
C9: 83 € | D9: 1758
C10: 91 € | D10: 2715

Sheet Tabla dinámica evolución ventas (hidden)
B1: Tabla dinámica de evolución de las ventas
B2: Esta hoja debe mantenerse oculta. Todas las modificaciones que se realicen a la tabla dinámica anterior pueden causar que los datos del Informe de ventas del producto sean incorrectos.
B3: Suma de Total de ventas (Número) | C3: Nombre de producto
B4: Fecha de precio | C4: Sandalias
B5: ene | C5: 1787
B6: feb | C6: 4222
B7: mar | C7: 1777
B8: abr | C8: 2715
B9: may | C9: 2539
